bitfinex/quotes_BTCUSD_20260125
["timestamp","ask_amount","ask_price","bid_price","bid_amount"]
[1769369523031,2.32061217,86550.0,86531.0,0.01155655]
[1769369523233,2.32061217,86550.0,86528.0,0.01155695]
[1769369523466,2.31491217,86550.0,86521.0,0.10091914]
[1769369523686,2.31491217,86550.0,86543.0,0.01155494]
[1769369523687,2.12999967,86550.0,86543.0,0.01155494]
[1769369523918,2.12999967,86550.0,86540.0,0.01155535]
[1769369523919,0.04624,86578.0,86554.0,0.01155348]
[1769369524118,0.04624,86578.0,86549.0,0.51131732]
[1769369524119,0.04638215,86578.0,86557.0,0.01155308]
[1769369524334,0.04638215,86578.0,86549.0,0.49976318]
[1769369524492,1.16666666,86577.0,86547.0,0.01155441]
[1769369524697,1.16192257,86577.0,86548.0,0.01155428]
[1769369524897,1.16192257,86577.0,86543.0,0.06932928]
[1769369525109,1.16192257,86577.0,86554.0,0.001]
[1769369525485,1.1650853,86574.0,86538.0,0.01155561]
[1769369525701,1.1650853,86572.0,86538.0,0.01155561]
[1769369525915,1.1650853,86572.0,86548.0,0.01155428]
[1769369526124,1.1650853,86572.0,86546.0,0.01155454]
[1769369526335,0.04638215,86578.0,86548.0,0.01155428]
[1769369526554,0.04638215,86578.0,86545.0,0.46277944]
[1769369526555,1.17663611,86574.0,86545.0,0.46277944]
[1769369526760,1.1650853,86574.0,86545.0,0.46277944]
[1769369526972,0.01155134,86570.0,86535.0,0.06509444]
[1769369527189,0.01155134,86570.0,86531.0,0.01155655]
[1769369527190,1.17663717,86566.0,86532.0,0.01155641]
[1769369527413,1.1650853,86565.0,86536.0,0.03698374]
[1769369527624,1.1650853,86565.0,86539.0,0.01155548]
[1769369528060,1.1650853,86565.0,86541.0,0.01155521]
[1769369528279,0.0005741,86580.0,86549.0,0.01155414]
[1769369528650,1.1650853,86577.0,86546.0,0.01155454]
[1769369528794,1.1650853,86577.0,86548.0,0.01155428]
[1769369528998,1.1650853,86577.0,86547.0,0.47433385]
[1769369529478,0.01155054,86576.0,86544.0,0.01155481]
[1769369529683,1.1650853,86576.0,86546.0,0.06932718]
[1769369529882,0.01155054,86576.0,86542.0,0.46277944]
[1769369530054,1.1650853,86564.0,86531.0,0.51131973]
[1769369530447,0.01155254,86561.0,86541.0,0.001]
[1769369530652,1.1650853,86562.0,86541.0,0.00084213]
[1769369530901,1.1650853,86562.0,86529.0,0.18911681]
[1769369531159,1.1650853,86562.0,86531.0,0.01155655]
[1769369531358,1.1650853,86562.0,86531.0,0.01255655]
[1769369531570,1.1650853,86562.0,86532.0,0.01155641]
[1769369531695,0.06931025,86568.0,86531.0,0.01255655]
[1769369531696,0.45819319,86576.0,86540.0,0.01155535]
[1769369531901,0.03,86546.0,86544.0,0.01155481]
[1769369532102,0.01614386,86573.0,86545.0,0.01155468]
[1769369532305,1.16666666,86575.0,86546.0,0.00560089]
[1769369532892,0.45819319,86576.0,86546.0,0.00560089]
[1769369532893,0.01155134,86570.0,86546.0,0.00560089]
[1769369533205,1.16666666,86566.0,86546.0,0.00560089]
[1769369533906,0.01155241,86562.0,86546.0,0.00560089]
[1769369534105,0.01155241,86562.0,86527.0,0.01155708]
[1769369534106,0.00439911,86545.0,86524.0,0.01155748]
[1769369534315,1.16666666,86553.0,86523.0,0.46277944]
[1769369534518,1.16666666,86553.0,86524.0,0.01155748]
[1769369534676,1.16666666,86553.0,86523.0,0.46277944]
[1769369535689,1.16666666,86550.0,86522.0,0.04624]
[1769369535915,0.01155561,86538.0,86522.0,0.04624]
[1769369536117,1.15125333,86535.0,86510.0,0.03698374]
[1769369536296,1.150953,86535.0,86510.0,0.03698374]
[1769369536497,1.15115322,86533.0,86506.0,0.03698374]
[1769369536693,1.14765567,86533.0,86529.0,0.001]
[1769369536880,1.14365727,86533.0,86510.0,0.01155935]
[1769369537087,1.14365727,86533.0,86510.0,0.00047403]
[1769369537392,1.1408563,86533.0,86510.0,0.00047403]
[1769369537672,1.140675,86533.0,86510.0,0.00147403]
[1769369537845,1.13987527,86533.0,86510.0,0.00147403]
[1769369538146,1.12947601,86533.0,86510.0,0.00047403]
[1769369538323,1.1425938,86530.0,86510.0,0.00147403]
[1769369538504,1.14081148,86530.0,86510.0,0.00147403]
[1769369538705,1.1414659,86539.0,86510.0,0.00147403]
[1769369538905,0.01155681,86529.0,86510.0,0.00147403]
[1769369539128,1.1414659,86530.0,86510.0,0.00147403]
[1769369539347,1.15302258,86530.0,86510.0,0.00147403]
[1769369539877,0.4712106,86541.0,86510.0,0.00147403]
[1769369540055,0.01155535,86540.0,86510.0,0.00047403]
[1769369540194,1.1414659,86540.0,86511.0,0.03698374]
[1769369540395,0.01155561,86538.0,86510.0,0.00147403]
[1769369540646,1.1414659,86534.0,86510.0,0.00147403]
[1769369541022,1.1414659,86534.0,86510.0,0.00047403]
[1769369541399,0.001,86540.0,86514.0,0.01155882]
[1769369541812,1.1414659,86541.0,86521.0,0.01155788]
[1769369541813,1.1186659,86541.0,86521.0,0.01155788]
[1769369541960,1.1129659,86541.0,86519.0,0.03698374]
[1769369542704,1.1129659,86541.0,86523.0,0.01155762]
[1769369542933,1.1129659,86541.0,86514.0,0.23117385]
[1769369542934,0.00339911,86523.0,86510.0,0.00147403]
[1769369543335,0.00045779,86523.0,86511.0,0.00048694]
[1769369543550,1.1319659,86524.0,86514.0,0.001]
[1769369543761,0.01155588,86536.0,86514.0,0.001]
[1769369543977,0.42528505,86555.0,86515.0,0.00048691]
[1769369543978,1.1319659,86537.0,86515.0,0.00048691]
[1769369544376,1.12595194,86537.0,86515.0,0.00048691]
[1769369544520,1.12996124,86549.0,86516.0,0.49743995]
[1769369544732,1.12996124,86546.0,86517.0,0.00048689]
[1769369545065,0.05777727,86540.0,86517.0,0.00048689]
[1769369545211,0.01155494,86543.0,86517.0,0.00048689]
[1769369545416,1.08249184,86542.0,86517.0,0.00048689]
[1769369545835,1.09404732,86539.0,86517.0,0.00048689]
[1769369546050,1.08249184,86539.0,86517.0,0.00048689]
[1769369546253,1.09404732,86539.0,86517.0,0.00048689]
[1769369546465,1.08249184,86539.0,86517.0,0.00048689]
[1769369546697,0.01155521,86541.0,86517.0,0.00048689]
[1769369546698,1.08249184,86537.0,86517.0,0.001]
[1769369546902,1.09404759,86537.0,86517.0,0.001]
[1769369547082,1.09404759,86537.0,86510.0,0.00047403]
[1769369547083,0.01155588,86536.0,86510.0,0.00047403]
[1769369547313,1.08249184,86535.0,86510.0,0.00047403]
[1769369547519,0.00591033,86536.0,86510.0,0.00047403]
[1769369547712,1.08249184,86536.0,86510.0,0.00047403]
[1769369548268,1.08249184,86536.0,86511.0,0.01155922]
[1769369548687,1.08249184,86536.0,86510.0,0.01303338]
[1769369548967,1.07856931,86536.0,86513.0,0.01155895]
[1769369549122,1.07562734,86536.0,86513.0,0.01155895]
[1769369549326,1.06974309,86536.0,86513.0,0.01155895]
[1769369549542,1.08249184,86534.0,86510.0,0.00047403]
[1769369549760,1.06539184,86534.0,86510.0,0.00047403]
[1769369550100,0.99129184,86534.0,86510.0,0.49891398]
[1769369550274,0.93901106,86534.0,86514.0,0.01155882]
[1769369550468,0.90168238,86534.0,86513.0,0.01155895]
[1769369550632,0.47120967,86548.0,86513.0,0.01155895]
[1769369550633,0.45965539,86548.0,86520.0,0.01155802]
[1769369550834,1.08249184,86547.0,86519.0,0.01155815]
[1769369551047,1.07749184,86547.0,86522.0,0.05778851]
[1769369551248,1.07749184,86547.0,86521.0,0.49743995]
[1769369551667,1.07749184,86547.0,86523.0,0.01155762]
[1769369551870,1.07749184,86547.0,86521.0,0.49743995]
[1769369552068,1.07749184,86547.0,86522.0,0.01155775]
[1769369552280,1.07749184,86547.0,86522.0,0.06934632]
[1769369552474,1.07749184,86547.0,86521.0,0.49743995]
[1769369552677,1.07749184,86547.0,86521.0,0.56678675]
[1769369552891,1.07749184,86547.0,86521.0,0.49743995]
[1769369553090,1.07749184,86547.0,86522.0,0.01155775]
[1769369553314,1.07749184,86547.0,86523.0,0.01155762]
[1769369553511,1.07749184,86547.0,86521.0,0.49743995]
[1769369554629,1.04249184,86547.0,86522.0,0.01155775]
[1769369554833,0.03698374,86545.0,86521.0,0.49743995]
[1769369555069,0.4960291,86543.0,86513.0,0.06329259]
[1769369555239,0.48447416,86540.0,86513.0,0.06329259]
[1769369555463,0.48447416,86540.0,86510.0,0.00047403]
[1769369555464,1.08183987,86539.0,86510.0,0.00047403]
[1769369555669,1.08183987,86534.0,86510.0,0.00047403]
[1769369555869,0.23110425,86542.0,86510.0,0.00047403]
[1769369555870,0.01155374,86552.0,86534.0,0.01]
[1769369555990,0.03698374,86546.0,86534.0,0.01]
[1769369556204,1.08183987,86545.0,86515.0,0.01155868]
[1769369556444,1.08183987,86544.0,86518.0,0.01155828]
[1769369556646,1.08183987,86544.0,86520.0,0.01155802]
[1769369556808,1.08183987,86544.0,86511.0,0.4834254]
[1769369557020,1.08183987,86544.0,86517.0,0.01155842]
[1769369557225,1.08183987,86544.0,86518.0,0.01155828]
[1769369557725,1.08183987,86544.0,86518.0,0.001]
[1769369557937,0.0361661,86543.0,86518.0,0.01255828]
[1769369558135,1.08183987,86543.0,86518.0,0.01255828]
[1769369558341,1.07447332,86543.0,86522.0,0.01155775]
[1769369558575,0.48447416,86553.0,86526.0,0.05778563]
[1769369558762,0.11336757,86552.0,86527.0,0.4834254]
[1769369558962,0.03698374,86546.0,86476.0,0.08690255]
[1769369559294,0.01,86527.0,86511.0,0.4834254]
[1769369559577,1.08101976,86531.0,86511.0,0.4834254]
[1769369559967,1.08101976,86531.0,86510.0,0.00047403]
[1769369559968,1.08183987,86530.0,86510.0,0.00047403]
[1769369560168,0.00706576,86501.0,86480.0,0.4834254]
[1769369560391,1.08183987,86508.0,86476.0,0.0115639]
[1769369560635,0.01156002,86505.0,86472.0,0.06274568]
[1769369560834,0.01155975,86507.0,86473.0,0.4834254]
[1769369560835,1.08183987,86506.0,86473.0,0.4834254]
[1769369561106,1.08183987,86506.0,86475.0,0.01156403]
[1769369561268,0.03698374,86497.0,86474.0,0.01156416]
[1769369561464,1.08183987,86503.0,86475.0,0.01156403]
[1769369561671,1.08183987,86503.0,86475.0,0.49498943]
[1769369561872,1.08183987,86503.0,86475.0,0.4834254]
[1769369562076,1.08183987,86503.0,86475.0,0.49498943]
[1769369562273,1.08183987,86503.0,86475.0,0.4834254]
[1769369562618,1.08183987,86503.0,86477.0,0.01156376]
[1769369562830,0.03698374,86498.0,86476.0,0.001]
[1769369563033,0.03698374,86485.0,86476.0,0.001]
[1769369563229,0.00047403,86476.0,86452.0,0.06445761]
[1769369563444,0.00047403,86476.0,86451.0,0.04624]
[1769369563445,1.08183987,86469.0,86451.0,0.04624]
[1769369563649,0.0115651,86467.0,86451.0,0.04624]
[1769369563872,0.0115655,86464.0,86452.0,0.00054982]
[1769369564078,1.09340551,86463.0,86439.0,0.00054982]
[1769369564219,1.08183987,86463.0,86439.0,0.00054982]
[1769369564424,1.08183987,86463.0,86439.0,0.00102268]
[1769369565461,0.01156443,86472.0,86439.0,0.00102268]
[1769369565703,0.42550893,86497.0,86439.0,0.00102268]
[1769369565704,1.08183987,86463.0,86439.0,0.00102268]
[1769369565929,0.0115659,86461.0,86439.0,0.00102268]
[1769369566379,1.08183987,86458.0,86439.0,0.00047286]
[1769369566692,1.09340617,86458.0,86439.0,0.00047286]
[1769369567219,1.08183987,86458.0,86439.0,0.00047286]
[1769369568427,0.0115655,86464.0,86439.0,0.00047286]
[1769369568428,0.01156416,86474.0,86439.0,0.00047286]
[1769369568629,0.03698374,86465.0,86439.0,0.00047286]
[1769369568904,0.01156577,86462.0,86439.0,0.00047286]
[1769369569076,0.01156604,86460.0,86439.0,0.00047286]
[1769369569382,1.09340577,86461.0,86439.0,0.00047286]
[1769369569587,0.05783052,86460.0,86439.0,0.00047286]
[1769369569795,1.08183987,86464.0,86439.0,0.00047286]
[1769369570005,0.01156564,86463.0,86439.0,0.00047286]
[1769369570171,1.08183987,86462.0,86439.0,0.00047286]
[1769369570985,0.23125077,86487.0,86441.0,0.01156858]
[1769369571188,0.03698374,86469.0,86445.0,1.06137571]
[1769369571547,1.08183987,86437.0,86425.0,0.0005741]
[1769369571755,0.00047324,86437.0,86425.0,0.0005741]
[1769369571959,0.48447416,86444.0,86425.0,0.0005741]
[1769369571960,0.4688474,86444.0,86425.0,0.0005741]
[1769369572181,0.03698374,86443.0,86425.0,0.00104734]
[1769369572381,1.08183987,86442.0,86425.0,0.00104734]
[1769369572933,0.03698374,86441.0,86425.0,0.00104734]
[1769369573137,0.05783821,86449.0,86425.0,0.00104734]
[1769369573138,1.25947987,86452.0,86425.0,0.00104734]
[1769369573343,0.03698374,86451.0,86425.0,0.48447274]
[1769369573875,0.01156804,86445.0,86425.0,0.00104734]
[1769369574079,1.08183987,86444.0,86425.0,0.00104734]
[1769369575564,1.08183987,86444.0,86425.0,0.00204734]
[1769369575973,1.08183987,86437.0,86425.0,0.00104734]
[1769369576177,0.03698374,86436.0,86420.0,0.002755]
[1769369576372,0.03698374,86436.0,86410.0,5.057e-05]
[1769369576373,1.08183987,86432.0,86410.0,5.057e-05]
[1769369576554,1.08183987,86432.0,86400.0,0.07477037]
[1769369576555,1.09340965,86432.0,86400.0,0.07477037]
[1769369576765,1.08183987,86430.0,86404.0,0.01165839]
[1769369576970,1.08183987,86430.0,86404.0,8.486e-05]
[1769369577470,1.08183987,86428.0,86404.0,8.486e-05]
[1769369577873,0.01157032,86428.0,86404.0,8.486e-05]
[1769369578077,0.01157059,86426.0,86404.0,8.486e-05]
[1769369578321,0.01157045,86427.0,86404.0,8.486e-05]
[1769369578322,1.08183987,86427.0,86404.0,8.486e-05]
[1769369578483,0.03698374,86421.0,86404.0,8.486e-05]
[1769369578682,0.8907981,86420.0,86404.0,0.00108486]
[1769369578947,0.03698374,86421.0,86348.0,0.01144313]
[1769369578948,0.01157527,86391.0,86348.0,0.01144313]
[1769369579137,0.03698374,86405.0,86360.0,1e-08]
[1769369579138,0.07406807,86361.0,86360.0,1e-08]
[1769369579361,0.39450516,86370.0,86347.0,0.01158117]
[1769369579362,1.08183987,86369.0,86347.0,0.01158117]
[1769369579564,0.07406807,86368.0,86340.0,0.39450918]
[1769369579793,0.07406807,86368.0,86306.0,0.01158667]
[1769369579794,0.07406807,86341.0,86306.0,0.01158667]
[1769369579962,0.07406807,86341.0,86296.0,0.01158802]
[1769369579963,0.07248725,86326.0,86296.0,0.01158802]
[1769369580178,1.56631403,86353.0,86326.0,0.00952764]
[1769369580356,1.08183987,86348.0,86326.0,0.00510867]
[1769369580540,0.07406807,86347.0,86326.0,0.00510867]
[1769369580743,0.07406807,86347.0,86307.0,0.04628]
[1769369580744,1.08183987,86338.0,86294.0,0.4834254]
[1769369580943,1.08183987,86338.0,86288.0,0.04628]
[1769369580944,1.08183987,86322.0,86288.0,0.04628]
[1769369581379,0.00014166,86338.0,86290.0,0.38292707]
[1769369581583,0.00014166,86338.0,86259.0,0.0214097]
[1769369581584,0.01381785,86304.0,86259.0,0.0006737]
[1769369581841,0.09036575,86284.0,86273.0,0.01159111]
[1769369582042,0.38292707,86320.0,86273.0,0.01159111]
[1769369582043,1.56631403,86317.0,86309.0,0.01381785]
[1769369582160,1.22989016,86340.0,86280.0,0.38292707]
[1769369582161,1.67331403,86337.0,86280.0,0.38292707]
[1769369582363,0.48447416,86359.0,86337.0,0.01]
[1769369582563,0.0006737,86360.0,86337.0,0.01]
[1769369582806,0.38374248,86360.0,86337.0,0.01]
[1769369583012,0.00081541,86360.0,86341.0,0.01158198]
[1769369583211,0.08345069,86361.0,86337.0,0.01]
[1769369583388,1.07092811,86374.0,86342.0,0.01158184]
[1769369583599,1.07092811,86369.0,86337.0,0.00014171]
[1769369584013,0.38292707,86350.0,86337.0,0.00014171]
[1769369584182,0.01158077,86350.0,86337.0,0.00014171]
[1769369584407,0.08345069,86344.0,86337.0,0.00014171]
[1769369584809,0.02422975,86343.0,86337.0,0.00014171]
[1769369585010,1.07092811,86372.0,86343.0,0.01]
[1769369585519,0.08345069,86371.0,86344.0,0.01158158]
[1769369585726,0.47040519,86381.0,86343.0,0.01]
[1769369585727,0.01157541,86390.0,86354.0,0.01158023]
[1769369585921,0.08345069,86389.0,86360.0,0.38292707]
[1769369586087,0.08345069,86389.0,86356.0,0.46625474]
[1769369586088,0.04167897,86388.0,86359.0,0.01157956]
[1769369586410,0.0161456,86401.0,86381.0,0.01157661]
[1769369586498,0.04167897,86442.0,86350.0,0.38292707]
[1769369586499,1.08707371,86427.0,86397.0,0.01157447]
[1769369586700,0.05784809,86434.0,86410.0,0.38292707]
[1769369586964,1.08249535,86451.0,86412.0,0.05786198]
[1769369587182,1.08249535,86451.0,86410.0,0.38292707]
[1769369587183,0.01156858,86441.0,86410.0,0.38292707]
[1769369587384,0.00748497,86431.0,86404.0,0.04632]
[1769369587607,8.858e-05,86431.0,86404.0,0.04632]
[1769369587818,4.429e-05,86431.0,86406.0,0.01157327]
[1769369588020,4.429e-05,86431.0,86404.0,0.04632]
[1769369588229,4.429e-05,86431.0,86404.0,0.05789353]
[1769369588427,4.429e-05,86431.0,86404.0,0.04632]
[1769369588690,4.429e-05,86431.0,86415.0,0.01157206]
[1769369588890,4.429e-05,86431.0,86361.0,0.13896]
[1769369588891,0.46486479,86463.0,86431.0,4.429e-05]
[1769369589105,0.04167897,86451.0,86421.0,0.05785603]
[1769369589296,0.01156577,86462.0,86430.0,0.01157005]
[1769369589499,0.01156577,86462.0,86420.0,0.38292707]
[1769369589500,0.0115659,86461.0,86427.0,0.01157045]
[1769369589702,0.0115659,86461.0,86423.0,0.01157099]
[1769369589703,0.05324554,86456.0,86430.0,0.38292707]
[1769369589883,0.04632,86471.0,86416.0,0.04632]
[1769369589884,0.0115655,86464.0,86420.0,0.38292707]
[1769369590059,0.04167897,86455.0,86425.0,0.46625474]
[1769369590259,0.00014234,86463.0,86416.0,0.04632]
[1769369590260,0.04167897,86443.0,86416.0,0.04632]
[1769369590482,0.01156831,86443.0,86416.0,0.04632]
[1769369590683,0.04167897,86444.0,86416.0,0.04632]
[1769369590684,0.01156858,86441.0,86416.0,0.04632]
[1769369590935,0.04167897,86431.0,86416.0,0.04632]
[1769369591134,0.01157032,86428.0,86416.0,0.04632]
[1769369591280,0.04167897,86431.0,86416.0,0.04632]
[1769369591499,0.0161456,86449.0,86416.0,0.04632]
[1769369591500,0.01156885,86439.0,86416.0,0.04632]
[1769369591699,0.01156911,86437.0,86416.0,0.04632]
[1769369591904,0.04167897,86449.0,86420.0,0.38292707]
[1769369592080,0.00014231,86449.0,86430.0,0.38292707]
[1769369592288,0.00014231,86449.0,86416.0,0.05789193]
[1769369592289,0.05324808,86437.0,86416.0,0.04632]
[1769369592564,0.01157179,86417.0,86390.0,0.46625474]
[1769369592767,0.04167897,86423.0,86374.0,0.18524]
[1769369592768,0.0115726,86411.0,86375.0,0.17776]
[1769369592978,0.0115726,86411.0,86379.0,0.06271634]
[1769369593181,0.01157527,86391.0,86373.0,0.04628]
[1769369593382,0.05787988,86386.0,86373.0,0.04628]
[1769369593589,0.01157568,86388.0,86373.0,0.04628]
[1769369593760,0.01171783,86388.0,86373.0,0.04628]
[1769369594025,0.01157594,86386.0,86373.0,0.04628]
[1769369594220,0.01157594,86386.0,86355.0,0.07648187]
[1769369594221,0.04167897,86382.0,86355.0,0.04628]
[1769369594427,0.01157688,86379.0,86355.0,0.04628]
[1769369594570,0.01157688,86379.0,86337.0,0.46625474]
[1769369594571,0.01041873,86379.0,86337.0,0.46625474]
[1769369594770,0.01041873,86379.0,86326.0,0.17776]
[1769369594771,0.06947128,86367.0,86335.0,0.04628]
[1769369594995,0.47054734,86388.0,86350.0,0.39450784]
[1769369595170,0.001,86386.0,86367.0,0.01]
[1769369595573,0.00014215,86388.0,86370.0,0.39450516]
[1769369595776,0.0115738,86402.0,86371.0,0.04632]
[1769369596095,0.81411371,86423.0,86371.0,0.04632]
[1769369596096,0.01157568,86388.0,86371.0,0.0004747]
[1769369596293,0.01157541,86390.0,86371.0,0.0004747]
[1769369596458,0.01157474,86395.0,86371.0,0.0004747]
[1769369596658,0.01157554,86389.0,86371.0,0.0004747]
[1769369597085,0.01157581,86387.0,86371.0,0.0004747]
[1769369597315,0.38292707,86420.0,86371.0,0.0004747]
[1769369597515,0.001,86402.0,86371.0,0.0004747]
[1769369597755,0.001,86402.0,86380.0,0.38292707]
[1769369597908,0.000125,86402.0,86380.0,0.38292707]
[1769369598125,0.04167897,86420.0,86376.0,0.01157728]
[1769369598126,1.11413001,86415.0,86390.0,0.38292707]
[1769369598510,1.11413001,86415.0,86388.0,0.04632]
[1769369598825,0.01157045,86427.0,86400.0,0.38292707]
[1769369599261,0.05782457,86437.0,86388.0,0.53052127]
[1769369599262,0.01157139,86420.0,86388.0,0.53052127]
[1769369599406,0.01157166,86418.0,86388.0,0.53052127]
[1769369599616,0.01157072,86425.0,86400.0,0.38292707]
[1769369599812,0.01157072,86425.0,86389.0,0.01157554]
[1769369599813,0.01157072,86425.0,86390.0,0.38292707]
[1769369600007,0.04167897,86424.0,86391.0,0.04632]
[1769369600237,0.04167897,86424.0,86391.0,0.03012]
[1769369600440,1.11519041,86423.0,86388.0,0.04632]
[1769369600640,1.11519041,86423.0,86383.0,0.01157635]
[1769369600986,0.01157179,86417.0,86390.0,0.38292707]
[1769369601192,0.01157126,86421.0,86389.0,0.04632]
[1769369601399,0.01157219,86414.0,86390.0,0.00129636]
[1769369601583,0.01157126,86421.0,86390.0,0.00129636]
[1769369601770,0.01157219,86414.0,86390.0,0.00129636]
[1769369602132,1.11519041,86447.0,86414.0,0.01]
[1769369602366,7.108e-05,86425.0,86415.0,0.00129598]
[1769369603413,7.108e-05,86425.0,86395.0,0.01157474]
[1769369603631,7.108e-05,86425.0,86407.0,0.04632]
[1769369603632,4.05e-05,86415.0,86407.0,0.04632]
[1769369603754,0.01157032,86428.0,86407.0,0.04632]
[1769369603987,0.01157032,86428.0,86382.0,0.04632]
[1769369603988,0.01482976,86407.0,86382.0,0.04632]
[1769369604200,0.00325663,86407.0,86382.0,0.04646215]
[1769369604814,1.11519041,86406.0,86382.0,0.04646215]
[1769369605237,0.01157394,86401.0,86382.0,0.04646215]
[1769369605605,1.12676555,86392.0,86382.0,0.04646215]
[1769369605734,1.12676555,86392.0,86357.0,0.01157983]
[1769369605735,1.11519041,86392.0,86364.0,0.04632]
[1769369606114,1.11519041,86392.0,86368.0,0.01157836]
[1769369606266,1.11519041,86392.0,86364.0,0.04646215]
[1769369606447,1.11519041,86392.0,86365.0,0.01157876]
[1769369606657,1.11519041,86392.0,86366.0,0.01157863]
[1769369606871,1.11519041,86392.0,86364.0,0.11593553]
[1769369606872,1.11519041,86392.0,86364.0,0.04646215]
[1769369607111,0.01157568,86388.0,86364.0,0.04646215]
[1769369607241,1.11519041,86392.0,86364.0,0.04646215]
[1769369607448,0.01157742,86375.0,86364.0,0.04646215]
[1769369607685,1.11519041,86384.0,86364.0,0.00014215]
[1769369607912,0.08969749,86418.0,86364.0,0.00014215]
[1769369608112,0.01157527,86391.0,86364.0,0.00014215]
[1769369608336,0.01157648,86382.0,86349.0,0.01158091]
[1769369608543,1.11519041,86388.0,86356.0,0.01157997]
[1769369608749,0.01157581,86387.0,86353.0,0.01158037]
[1769369608921,1.11519041,86388.0,86359.0,0.01157956]
[1769369609180,0.01157501,86393.0,86363.0,0.01157903]
[1769369609328,0.49473352,86404.0,86364.0,0.00047643]
[1769369609329,0.0115746,86396.0,86364.0,0.00047643]
[1769369609531,1.12676475,86398.0,86365.0,0.01157876]
[1769369609873,0.91000092,86395.0,86366.0,0.00047909]
[1769369610084,0.01157541,86390.0,86366.0,0.00047909]
[1769369610287,0.01157541,86390.0,86360.0,0.01157943]
[1769369610288,0.01157554,86389.0,86361.0,0.00047909]
[1769369610493,0.01157501,86393.0,86364.0,0.01157889]
[1769369610699,0.01157501,86393.0,86365.0,0.00047908]
[1769369610924,0.01157594,86386.0,86348.0,0.49578231]
[1769369611134,0.04632,86425.0,86366.0,0.01157863]
[1769369611135,0.0115742,86399.0,86366.0,0.01157863]
[1769369611261,1.11519041,86402.0,86373.0,0.01157769]
[1769369611466,1.11519041,86420.0,86392.0,0.01157514]
[1769369611690,0.04632,86425.0,86400.0,0.01157407]
[1769369611892,1.12676006,86433.0,86380.0,1.13103734]
[1769369611893,0.0161456,86432.0,86396.0,0.0115746]
[1769369612091,0.02771538,86432.0,86399.0,0.0115742]
[1769369612315,0.01156992,86431.0,86394.0,0.48420127]
[1769369612532,0.05785296,86426.0,86394.0,0.48420127]
[1769369612699,0.01157059,86426.0,86395.0,0.01157474]
[1769369612902,0.01157085,86424.0,86394.0,0.49577614]
[1769369613099,0.01157166,86418.0,86387.0,0.01157581]
[1769369613417,0.001,86402.0,86390.0,0.01157541]
[1769369613623,0.06942518,86424.0,86385.0,0.06315588]
[1769369613624,1.13076093,86431.0,86402.0,0.0005]
[1769369613967,0.0578489,86433.0,86402.0,0.0005]
[1769369613968,0.01156965,86433.0,86402.0,0.0005]
[1769369614181,0.01157019,86429.0,86402.0,0.0005]
[1769369614358,0.01156965,86433.0,86402.0,0.0120738]
[1769369614566,0.01156965,86433.0,86388.0,1.32065244]
[1769369614567,0.01157367,86403.0,86338.0,0.057206]
[1769369614772,0.00047412,86433.0,86375.0,0.01157742]
[1769369614773,1.11919101,86404.0,86375.0,0.01157742]
[1769369614907,1.11919101,86404.0,86373.0,0.01157769]
[1769369615116,1.11919101,86404.0,86368.0,0.04632]
[1769369615117,0.01157394,86401.0,86369.0,0.01157822]
[1769369615321,0.0115734,86405.0,86367.0,0.01157849]
[1769369615322,0.01157487,86394.0,86367.0,0.04632]
[1769369615522,1.11919101,86393.0,86367.0,0.04632]
[1769369615725,1.11919101,86393.0,86367.0,0.11579077]
[1769369615726,1.11933309,86393.0,86367.0,0.11579077]
[1769369615928,7.104e-05,86393.0,86375.0,0.01157742]
[1769369616266,7.104e-05,86393.0,86367.0,0.04632]
[1769369616267,1.11919101,86424.0,86394.0,0.01157487]
[1769369616430,1.11919101,86424.0,86370.0,0.56358524]
[1769369616431,0.11274287,86423.0,86399.0,0.0115742]
[1769369616679,0.00047403,86424.0,86405.0,0.0115734]
[1769369616902,5.926e-05,86424.0,86406.0,0.05786635]
[1769369617107,5.926e-05,86424.0,86407.0,0.05786531]
[1769369617325,5.926e-05,86424.0,86407.0,0.01157313]
[1769369617530,1.11919101,86438.0,86399.0,0.51226584]
[1769369617531,1.11919101,86432.0,86404.0,0.01157353]
[1769369617702,1.11919101,86432.0,86409.0,0.01157286]
[1769369617703,0.00014215,86432.0,86409.0,0.01157286]
[1769369617908,0.00014215,86432.0,86407.0,0.05786435]
[1769369617909,0.00014215,86432.0,86406.0,0.01157327]
[1769369618172,0.00014215,86432.0,86407.0,0.05786568]
[1769369618337,0.00014215,86432.0,86408.0,0.011573]
[1769369618541,0.00014215,86432.0,86410.0,0.01157273]
[1769369618751,0.00014215,86432.0,86408.0,0.011573]
[1769369618950,0.00014215,86432.0,86404.0,0.06944065]
[1769369618951,7.108e-05,86432.0,86419.0,0.01157152]
[1769369619158,0.08969749,86463.0,86437.0,0.01156911]
[1769369619389,0.11288776,86462.0,86440.0,0.01156871]
[1769369619507,0.0001421,86463.0,86448.0,0.01156764]
[1769369619710,0.0001421,86463.0,86453.0,0.01156697]
[1769369619948,0.01156283,86484.0,86436.0,0.04632]
[1769369619949,0.08969749,86488.0,86479.0,0.00442959]
[1769369620148,0.04167897,86509.0,86479.0,0.00442959]
[1769369620481,0.04167897,86509.0,86483.0,0.01156296]
[1769369620482,0.11279939,86508.0,86483.0,0.01156296]
[1769369620648,0.04182104,86509.0,86477.0,0.04632]
[1769369620849,0.08324277,86496.0,86477.0,0.04632]
[1769369621067,0.08324277,86493.0,86477.0,0.04632]
[1769369621308,1.11919101,86495.0,86479.0,0.001]
[1769369621515,1.11919101,86495.0,86477.0,0.04632]
[1769369621516,0.00329712,86477.0,86459.0,0.1778]
[1769369621716,1.11919101,86495.0,86445.0,0.01156804]
[1769369621950,1.11919101,86492.0,86450.0,0.01156737]
[1769369622143,0.08324277,86483.0,86454.0,0.01156684]
[1769369622351,0.08324277,86483.0,86450.0,0.01156737]
[1769369622352,0.09480573,86483.0,86450.0,0.01156737]
[1769369622562,1.13075611,86467.0,86434.0,0.01156952]
[1769369622706,1.11919101,86467.0,86450.0,0.0001421]
[1769369622925,1.18858404,86464.0,86441.0,0.04628]
[1769369623296,0.01156577,86462.0,86441.0,0.04628]
[1769369623471,0.00014202,86464.0,86441.0,0.04628]
[1769369623864,0.00014202,86464.0,86441.0,0.04128931]
[1769369624675,0.01156564,86463.0,86441.0,0.04128931]
[1769369624878,0.01170752,86464.0,86441.0,0.04128931]
[1769369625079,0.01156577,86462.0,86430.0,0.05785028]
[1769369625280,0.053207,86463.0,86432.0,0.01156978]
[1769369625479,1.11919101,86462.0,86437.0,0.01156911]
[1769369625702,0.00014202,86464.0,86444.0,0.01156818]
[1769369625886,0.00014202,86464.0,86443.0,0.01156831]
[1769369626088,0.00014202,86464.0,86449.0,0.01156751]
[1769369626270,7.101e-05,86464.0,86456.0,0.01156657]
[1769369626607,0.49818838,86492.0,86456.0,0.01156657]
[1769369626608,0.49818838,86492.0,86464.0,0.00014202]
[1769369626806,0.01156216,86489.0,86460.0,0.01156604]
[1769369627008,0.01156216,86489.0,86450.0,0.38363292]
[1769369627009,0.01156189,86491.0,86459.0,0.01156617]
[1769369627217,0.00014207,86492.0,86476.0,0.0115639]